[Event "*** Titled Tuesday Blitz"]
[Site "Chess.com"]
[Date "2019.05.07"]
[Round "6"]
[White "Sebastian"]
[Black "joppie2"]
[Result "1-0"]
[WhiteElo "2911"]
[BlackElo "2767"]
[TimeControl "180+2"]
[EndTime "14:28:39 PDT"]
[Termination "Sebastian won on time"]

1. e4 {[%clk 0:03:01.9]} 1... e5 {[%clk 0:03:01.4]} 2. Nf3 {[%clk 0:03:02.4]}
2... Nc6 {[%clk 0:03:02.3]} 3. Bc4 {[%clk 0:03:03.1]} 3... Bc5 {[%clk
0:03:01.1]} 4. c3 {[%clk 0:03:04]} 4... Nf6 {[%clk 0:03:02.5]} 5. d3 {[%clk
0:03:04.8]} 5... d6 {[%clk 0:03:03.2]} 6. Nbd2 {[%clk 0:03:03.6]} 6... a6 {[%clk
0:02:59.6]} 7. Bb3 {[%clk 0:03:03.9]} 7... O-O {[%clk 0:02:58.2]} 8. Nf1 {[%clk
0:03:04.7]} 8... Be6 {[%clk 0:02:59.1]} 9. Bc2 {[%clk 0:03:03.3]} 9... d5 {[%clk
0:02:59.7]} 10. exd5 {[%clk 0:03:00.1]} 10... Bxd5 {[%clk 0:03:00]} 11. Ng3
{[%clk 0:03:00]} 11... Re8 {[%clk 0:02:55.3]} 12. Qe2 {[%clk 0:03:00.1]} 12...
Qd7 {[%clk 0:02:29]} 13. O-O {[%clk 0:02:52.7]} 13... Qg4 {[%clk 0:02:26.2]} 14.
Ne4 {[%clk 0:02:52.8]} 14... Nxe4 {[%clk 0:02:23.1]} 15. dxe4 {[%clk 0:02:52.1]}
15... Be6 {[%clk 0:02:24.7]} 16. Be3 {[%clk 0:02:50.4]} 16... Bxe3 {[%clk
0:02:22.2]} 17. Qxe3 {[%clk 0:02:50.5]} 17... Rad8 {[%clk 0:02:18.5]} 18. Rfd1
{[%clk 0:02:50.5]} 18... Qf4 {[%clk 0:02:05.8]} 19. Qxf4 {[%clk 0:02:45.3]}
19... exf4 {[%clk 0:02:07.7]} 20. Nd4 {[%clk 0:02:30.5]} 20... Nxd4 {[%clk
0:02:08.1]} 21. cxd4 {[%clk 0:02:26.4]} 21... c6 {[%clk 0:02:09.2]} 22. a3
{[%clk 0:02:18.8]} 22... Re7 {[%clk 0:02:04]} 23. Rd2 {[%clk 0:02:19.2]} 23...
Red7 {[%clk 0:02:02.4]} 24. Rad1 {[%clk 0:02:19.7]} 24... g6 {[%clk 0:01:58.3]}
25. f3 {[%clk 0:02:19.9]} 25... Kg7 {[%clk 0:01:55.9]} 26. g3 {[%clk 0:02:20]}
26... fxg3 {[%clk 0:01:53.3]} 27. hxg3 {[%clk 0:02:20.4]} 27... f5 {[%clk
0:01:54.3]} 28. e5 {[%clk 0:01:48.5]} 28... c5 {[%clk 0:01:39.6]} 29. Kf2 {[%clk
0:01:32.7]} 29... cxd4 {[%clk 0:01:31.7]} 30. Bd3 {[%clk 0:01:32.9]} 30... Rc7
{[%clk 0:01:29.2]} 31. Be2 {[%clk 0:01:26.5]} 31... Rcd7 {[%clk 0:01:21.7]} 32.
Bd3 {[%clk 0:01:26.6]} 32... Rd5 {[%clk 0:01:19.7]} 33. f4 {[%clk 0:01:24.5]}
33... R5d7 {[%clk 0:01:12.1]} 34. Rc1 {[%clk 0:01:24.1]} 34... Bd5 {[%clk
0:01:09.3]} 35. Rdc2 {[%clk 0:01:20]} 35... Bc6 {[%clk 0:01:02.5]} 36. Rc5
{[%clk 0:01:16.9]} 36... h5 {[%clk 0:01:02]} 37. b4 {[%clk 0:01:15]} 37... Be4
{[%clk 0:00:55.4]} 38. Ke2 {[%clk 0:01:14.4]} 38... Kf8 {[%clk 0:00:48.9]} 39.
a4 {[%clk 0:01:13.8]} 39... Ke7 {[%clk 0:00:46.1]} 40. Rc7 {[%clk 0:00:56.6]}
40... Rxc7 {[%clk 0:00:37]} 41. Rxc7+ {[%clk 0:00:56.1]} 41... Rd7 {[%clk
0:00:38.9]} 42. Rc8 {[%clk 0:00:56.6]} 42... Rd8 {[%clk 0:00:36.8]} 43. Rc7+
{[%clk 0:00:57.5]} 43... Rd7 {[%clk 0:00:34]} 44. Rc8 {[%clk 0:00:58.1]} 44...
Rd8 {[%clk 0:00:31.5]} 45. Rc5 {[%clk 0:00:58.4]} 45... Kd7 {[%clk 0:00:23.6]}
46. Rc4 {[%clk 0:00:54.9]} 46... Ke6 {[%clk 0:00:20.4]} 47. b5 {[%clk 0:00:55]}
47... axb5 {[%clk 0:00:20.5]} 48. axb5 {[%clk 0:00:56.9]} 48... Rd5 {[%clk
0:00:16.5]} 49. Rb4 {[%clk 0:00:35.7]} 49... Rd8 {[%clk 0:00:05.7]} 50. Rc4
{[%clk 0:00:31.3]} 50... g5 {[%clk 0:00:06.5]} 51. Rc7 {[%clk 0:00:29.7]} 51...
gxf4 {[%clk 0:00:07.8]} 52. gxf4 {[%clk 0:00:30.2]} 52... Rd7 {[%clk 0:00:04.2]}
53. Bc4+ {[%clk 0:00:10.5]} 53... Ke7 {[%clk 0:00:05.2]} 54. Rc8 {[%clk
0:00:11.6]} 1-0

[Event "*** Titled Tuesday Blitz"]
[Site "Chess.com"]
[Date "2019.05.07"]
[Round "6"]
[White "kintoho"]
[Black "PotapovaM"]
[Result "1/2-1/2"]
[WhiteElo "2554"]
[BlackElo "2457"]
[TimeControl "180+2"]
[EndTime "14:29:04 PDT"]
[Termination "Game drawn by repetition"]

1. e4 {[%clk 0:03:01.9]} 1... c5 {[%clk 0:03:00.4]} 2. Nf3 {[%clk 0:03:02.9]}
2... d6 {[%clk 0:03:01.6]} 3. Bc4 {[%clk 0:03:03.1]} 3... g6 {[%clk 0:02:53.9]}
4. h3 {[%clk 0:03:02.2]} 4... Bg7 {[%clk 0:02:54.7]} 5. d3 {[%clk 0:03:02.4]}
5... Nf6 {[%clk 0:02:52.1]} 6. c3 {[%clk 0:03:02.7]} 6... O-O {[%clk 0:02:52.3]}
7. O-O {[%clk 0:03:03.8]} 7... Nbd7 {[%clk 0:02:39.3]} 8. Re1 {[%clk 0:03:01]}
8... a6 {[%clk 0:02:36.7]} 9. Bb3 {[%clk 0:03:01.8]} 9... b5 {[%clk 0:02:37.4]}
10. Nbd2 {[%clk 0:03:01.7]} 10... Bb7 {[%clk 0:02:38]} 11. Bc2 {[%clk
0:03:01.9]} 11... Rc8 {[%clk 0:02:37.2]} 12. Nf1 {[%clk 0:03:02.9]} 12... Qc7
{[%clk 0:02:24.2]} 13. Bf4 {[%clk 0:03:03.3]} 13... e5 {[%clk 0:02:24.8]} 14.
Bg5 {[%clk 0:03:03.4]} 14... h6 {[%clk 0:02:24.9]} 15. Bd2 {[%clk 0:03:03.6]}
15... d5 {[%clk 0:02:21.3]} 16. Ng3 {[%clk 0:02:57.5]} 16... c4 {[%clk
0:02:17.1]} 17. dxc4 {[%clk 0:02:42.4]} 17... dxe4 {[%clk 0:01:56.2]} 18. Nxe4
{[%clk 0:02:38.5]} 18... Nxe4 {[%clk 0:01:57.2]} 19. Bxe4 {[%clk 0:02:39]} 19...
Bxe4 {[%clk 0:01:57.9]} 20. Rxe4 {[%clk 0:02:40.2]} 20... f5 {[%clk 0:01:56.5]}
21. Re1 {[%clk 0:02:41.1]} 21... Qxc4 {[%clk 0:01:44.6]} 22. Qe2 {[%clk
0:02:34.4]} 22... Qxe2 {[%clk 0:01:38]} 23. Rxe2 {[%clk 0:02:35.6]} 23... e4
{[%clk 0:01:39.9]} 24. Ne1 {[%clk 0:02:30.7]} 24... Nc5 {[%clk 0:01:32.1]} 25.
Rd1 {[%clk 0:02:28.5]} 25... Na4 {[%clk 0:01:27.8]} 26. Bc1 {[%clk 0:02:28.3]}
26... Rfd8 {[%clk 0:01:20.2]} 27. Red2 {[%clk 0:02:28.8]} 27... Bf6 {[%clk
0:01:15.3]} 28. Rxd8+ {[%clk 0:02:28.2]} 28... Rxd8 {[%clk 0:01:16.6]} 29. Rxd8+
{[%clk 0:02:29.2]} 29... Bxd8 {[%clk 0:01:18.5]} 30. Nc2 {[%clk 0:02:27.2]}
30... Kg7 {[%clk 0:01:09.9]} 31. Nb4 {[%clk 0:02:28]} 31... Nc5 {[%clk
0:01:10.5]} 32. Be3 {[%clk 0:02:26.7]} 32... Na4 {[%clk 0:00:56.5]} 33. b3
{[%clk 0:02:24.2]} 33... Nxc3 {[%clk 0:00:54.2]} 34. Bd4+ {[%clk 0:02:22.4]}
34... Bf6 {[%clk 0:00:55.5]} 35. Bxc3 {[%clk 0:02:23.7]} 35... Bxc3 {[%clk
0:00:55.6]} 36. Nxa6 {[%clk 0:02:24.9]} 36... b4 {[%clk 0:00:46.1]} 37. Nc7
{[%clk 0:02:20.1]} 37... Kf6 {[%clk 0:00:44.5]} 38. a4 {[%clk 0:02:21.4]} 38...
Ke5 {[%clk 0:00:16.3]} 39. Nb5 {[%clk 0:02:18.6]} 39... Bd4 {[%clk 0:00:11.7]}
40. Kf1 {[%clk 0:02:17.7]} 40... Bb6 {[%clk 0:00:12]} 41. Ke2 {[%clk 0:02:17.9]}
41... f4 {[%clk 0:00:13]} 42. f3 {[%clk 0:02:15.7]} 42... e3 {[%clk 0:00:12.3]}
43. Kd3 {[%clk 0:02:16.9]} 43... g5 {[%clk 0:00:11.4]} 44. Ke2 {[%clk
0:02:16.1]} 44... h5 {[%clk 0:00:11.4]} 45. Kd3 {[%clk 0:02:17.2]} 45... Kd5
{[%clk 0:00:10]} 46. a5 {[%clk 0:02:10.1]} 46... Bxa5 {[%clk 0:00:10.3]} 47. Nd4
{[%clk 0:02:11.4]} 47... Bc7 {[%clk 0:00:05.7]} 48. Nf5 {[%clk 0:02:03.3]} 48...
Bd6 {[%clk 0:00:05]} 49. h4 {[%clk 0:02:02.1]} 49... gxh4 {[%clk 0:00:03.7]} 50.
Nxh4 {[%clk 0:02:03.3]} 50... Ke5 {[%clk 0:00:03.4]} 51. g4 {[%clk 0:01:58.2]}
51... hxg4 {[%clk 0:00:02.8]} 52. fxg4 {[%clk 0:01:59.6]} 52... Kf6 {[%clk
0:00:04.3]} 53. Nf3 {[%clk 0:02:00.4]} 53... Be7 {[%clk 0:00:04.6]} 54. Ke4
{[%clk 0:02:01.5]} 54... Bd6 {[%clk 0:00:05.7]} 55. Kd5 {[%clk 0:02:02.1]} 55...
Bc7 {[%clk 0:00:06.4]} 56. Kc5 {[%clk 0:02:01.9]} 56... e2 {[%clk 0:00:07.2]}
57. Kxb4 {[%clk 0:02:02]} 57... Bb6 {[%clk 0:00:08.4]} 58. Kc3 {[%clk
0:02:02.1]} 58... e1=Q+ {[%clk 0:00:08]} 59. Nxe1 {[%clk 0:02:01.7]} 59... Kg5
{[%clk 0:00:08.9]} 60. Kd3 {[%clk 0:01:58.8]} 60... Kxg4 {[%clk 0:00:09.4]} 61.
Ke2 {[%clk 0:02:00.2]} 61... Ba5 {[%clk 0:00:09.6]} 62. Nf3 {[%clk 0:02:00.4]}
62... Bc7 {[%clk 0:00:10]} 63. Nd4 {[%clk 0:02:01]} 63... Bd8 {[%clk 0:00:09]}
64. b4 {[%clk 0:02:00.2]} 64... Bb6 {[%clk 0:00:09.4]} 65. Nf3 {[%clk
0:02:00.9]} 65... Bd8 {[%clk 0:00:09]} 66. b5 {[%clk 0:02:01.7]} 66... Bb6
{[%clk 0:00:09.9]} 67. Ne5+ {[%clk 0:02:02.9]} 67... Kg3 {[%clk 0:00:10.7]} 68.
Nf3 {[%clk 0:02:02.3]} 68... Ba7 {[%clk 0:00:11.7]} 69. Ng5 {[%clk 0:02:03]}
69... Bb6 {[%clk 0:00:09.3]} 70. Ne4+ {[%clk 0:02:04]} 70... Kg2 {[%clk
0:00:08.8]} 71. Nd2 {[%clk 0:02:05.2]} 71... Ba5 {[%clk 0:00:09.4]} 72. Nf3
{[%clk 0:02:04.9]} 72... Bb6 {[%clk 0:00:10.3]} 73. Nh4+ {[%clk 0:02:06.1]}
73... Kg3 {[%clk 0:00:10.8]} 74. Nf5+ {[%clk 0:02:06.8]} 74... Kg2 {[%clk
0:00:11.3]} 75. Nh4+ {[%clk 0:02:07.9]} 75... Kg3 {[%clk 0:00:12.5]} 76. Nf3
{[%clk 0:02:09.1]} 76... Kg4 {[%clk 0:00:11.9]} 77. Ne1 {[%clk 0:02:08]} 77...
Kg3 {[%clk 0:00:12.3]} 78. Kf1 {[%clk 0:02:09.2]} 78... Bc7 {[%clk 0:00:11.7]}
79. Nd3 {[%clk 0:02:10.3]} 79... Bb6 {[%clk 0:00:12.5]} 80. Ne5 {[%clk
0:02:11.4]} 80... Bc7 {[%clk 0:00:11.7]} 81. Nc4 {[%clk 0:02:12.2]} 81... Bd8
{[%clk 0:00:12.5]} 82. Ne5 {[%clk 0:02:10.4]} 82... Bc7 {[%clk 0:00:13.3]} 83.
Nf7 {[%clk 0:02:11.3]} 83... Bb6 {[%clk 0:00:12.5]} 84. Ng5 {[%clk 0:02:10.5]}
84... Ba5 {[%clk 0:00:10.9]} 85. Ne4+ {[%clk 0:02:10.4]} 85... Kf3 {[%clk
0:00:11.6]} 86. Ng5+ {[%clk 0:02:10.7]} 86... Kg3 {[%clk 0:00:12.7]} 87. Ke2
{[%clk 0:02:11.3]} 87... Bb6 {[%clk 0:00:12.4]} 88. Ne4+ {[%clk 0:02:11.6]}
88... Kg2 {[%clk 0:00:09.6]} 89. Nd2 {[%clk 0:02:12.6]} 89... Kg3 {[%clk
0:00:09.9]} 90. Nf1+ {[%clk 0:02:13.1]} 90... Kg2 {[%clk 0:00:09.7]} 91. Nd2
{[%clk 0:02:13.2]} 91... Kg3 {[%clk 0:00:10.4]} 92. Ne4+ {[%clk 0:02:14.3]}
92... Kg2 {[%clk 0:00:11.1]} 93. Ng5 {[%clk 0:02:15.4]} 93... Kg3 {[%clk
0:00:09.2]} 1/2-1/2

[Event "*** Titled Tuesday Blitz"]
[Site "Chess.com"]
[Date "2019.05.07"]
[Round "6"]
[White "muran29"]
[Black "fastestmindalive"]
[Result "1-0"]
[WhiteElo "2500"]
[BlackElo "2642"]
[TimeControl "180+2"]
[EndTime "14:29:06 PDT"]
[Termination "muran29 won by resignation"]

1. d4 {[%clk 0:03:01.9]} 1... Nf6 {[%clk 0:03:00.5]} 2. c4 {[%clk 0:03:02.5]}
2... e6 {[%clk 0:03:01.9]} 3. Nf3 {[%clk 0:03:03.3]} 3... d5 {[%clk 0:03:02.5]}
4. Nc3 {[%clk 0:03:03.9]} 4... Bb4 {[%clk 0:03:03.5]} 5. Bg5 {[%clk 0:03:04.5]}
5... h6 {[%clk 0:03:04]} 6. Bxf6 {[%clk 0:03:04.9]} 6... Qxf6 {[%clk 0:03:05.9]}
7. e3 {[%clk 0:03:06.1]} 7... O-O {[%clk 0:03:05.7]} 8. Be2 {[%clk 0:03:06.4]}
8... c5 {[%clk 0:03:02.5]} 9. O-O {[%clk 0:03:04.4]} 9... Nc6 {[%clk 0:03:00]}
10. cxd5 {[%clk 0:02:51.8]} 10... cxd4 {[%clk 0:02:53.1]} 11. Ne4 {[%clk
0:02:35.2]} 11... Qg6 {[%clk 0:02:46.4]} 12. dxc6 {[%clk 0:02:31]} 12... Qxe4
{[%clk 0:02:42.3]} 13. Nxd4 {[%clk 0:02:28.9]} 13... bxc6 {[%clk 0:02:26.5]} 14.
Bf3 {[%clk 0:02:28.8]} 14... Qh4 {[%clk 0:02:25.8]} 15. Nxc6 {[%clk 0:02:27.8]}
15... Bb7 {[%clk 0:02:19.5]} 16. g3 {[%clk 0:02:26.5]} 16... Qf6 {[%clk
0:02:19.3]} 17. Nd4 {[%clk 0:02:13.1]} 17... Ba6 {[%clk 0:01:56.2]} 18. a3
{[%clk 0:02:04]} 18... Bc5 {[%clk 0:01:43.8]} 19. Bxa8 {[%clk 0:02:01.6]} 19...
Rxa8 {[%clk 0:01:41.5]} 20. Qf3 {[%clk 0:02:00.4]} 20... Qxf3 {[%clk 0:01:22.8]}
21. Nxf3 {[%clk 0:02:02.1]} 21... Bxf1 {[%clk 0:01:23.8]} 22. Kxf1 {[%clk
0:02:03.8]} 22... a5 {[%clk 0:01:23.6]} 23. Rc1 {[%clk 0:02:03.9]} 23... Be7
{[%clk 0:01:23.1]} 24. Ne5 {[%clk 0:02:02]} 24... Bf6 {[%clk 0:01:21.8]} 25. Nc4
{[%clk 0:02:01.5]} 25... Rb8 {[%clk 0:01:20.6]} 26. Rc2 {[%clk 0:02:01]} 26...
a4 {[%clk 0:01:21.5]} 27. Ke2 {[%clk 0:02:01.9]} 27... g5 {[%clk 0:01:18.5]} 28.
f4 {[%clk 0:02:01.7]} 28... g4 {[%clk 0:01:18.4]} 29. e4 {[%clk 0:02:02.4]}
29... Bd4 {[%clk 0:01:17.9]} 30. Kd3 {[%clk 0:02:02.5]} 30... Rd8 {[%clk
0:01:17.5]} 31. Ke2 {[%clk 0:02:03]} 31... Bg1 {[%clk 0:01:17.6]} 32. Ne3 {[%clk
0:01:31.8]} 32... h5 {[%clk 0:01:10.9]} 33. Nf1 {[%clk 0:01:30.3]} 33... Rb8
{[%clk 0:01:08.1]} 34. Rd2 {[%clk 0:01:23.8]} 34... Rb3 {[%clk 0:01:06.6]} 35.
e5 {[%clk 0:01:23.6]} 35... Kg7 {[%clk 0:01:06.2]} 36. Kd1 {[%clk 0:01:13.6]}
36... Rf3 {[%clk 0:01:05.4]} 37. Ke1 {[%clk 0:01:14.2]} 37... Kg6 {[%clk
0:00:59.6]} 38. Rg2 {[%clk 0:01:14.4]} 38... Bd4 {[%clk 0:00:52.9]} 39. Nd2
{[%clk 0:01:13.4]} 39... Re3+ {[%clk 0:00:48.7]} 40. Kd1 {[%clk 0:01:14.1]}
40... Bxb2 {[%clk 0:00:33.7]} 41. Nc4 {[%clk 0:01:15]} 41... Rd3+ {[%clk
0:00:34.9]} 42. Rd2 {[%clk 0:01:05.6]} 42... Rxd2+ {[%clk 0:00:35.5]} 43. Kxd2
{[%clk 0:01:07.5]} 43... Bd4 {[%clk 0:00:37]} 44. Ke2 {[%clk 0:01:02.3]} 44...
Bc5 {[%clk 0:00:34.5]} 45. Nb2 {[%clk 0:01:00]} 45... h4 {[%clk 0:00:21.4]} 46.
Nxa4 {[%clk 0:00:57.3]} 46... Bg1 {[%clk 0:00:22.8]} 47. gxh4 {[%clk 0:00:44]}
47... Bxh2 {[%clk 0:00:21.7]} 48. Nc5 {[%clk 0:00:40.4]} 48... Bxf4 {[%clk
0:00:19.7]} 49. Nd3 {[%clk 0:00:41.4]} 49... Bg3 {[%clk 0:00:20.6]} 50. a4
{[%clk 0:00:40.3]} 50... Bxh4 {[%clk 0:00:21.8]} 51. a5 {[%clk 0:00:41.5]} 51...
Bd8 {[%clk 0:00:22.8]} 52. a6 {[%clk 0:00:42.5]} 52... Bb6 {[%clk 0:00:24.2]}
53. Nb2 {[%clk 0:00:31.6]} 53... Kf5 {[%clk 0:00:24]} 54. Nc4 {[%clk 0:00:32.5]}
54... Bc5 {[%clk 0:00:19.1]} 55. Kf1 {[%clk 0:00:22.4]} 55... Ke4 {[%clk
0:00:15.7]} 56. Nd6+ {[%clk 0:00:16.2]} 56... Kf3 {[%clk 0:00:14.8]} 57. Nxf7
{[%clk 0:00:17.1]} 57... g3 {[%clk 0:00:11.4]} 58. Ng5+ {[%clk 0:00:17.9]} 58...
Kg4 {[%clk 0:00:12.2]} 59. Nxe6 {[%clk 0:00:18.6]} 59... Bb6 {[%clk 0:00:12.2]}
60. Kg2 {[%clk 0:00:18.7]} 60... Kf5 {[%clk 0:00:06.2]} 61. Nf8 {[%clk
0:00:17.5]} 61... Kxe5 {[%clk 0:00:06.6]} 62. Nd7+ {[%clk 0:00:18.3]} 62... Kd6
{[%clk 0:00:06.5]} 63. Nxb6 {[%clk 0:00:18]} 1-0

[Event "*** Titled Tuesday Blitz"]
[Site "Chess.com"]
[Date "2019.05.07"]
[Round "6"]
[White "kikoveiga"]
[Black "witcher8"]
[Result "1/2-1/2"]
[WhiteElo "2264"]
[BlackElo "2339"]
[TimeControl "180+2"]
[EndTime "14:29:15 PDT"]
[Termination "Game drawn by stalemate"]

1. e4 {[%clk 0:03:01.9]} 1... c6 {[%clk 0:03:00.7]} 2. d4 {[%clk 0:03:01.7]}
2... d5 {[%clk 0:03:02.2]} 3. Nc3 {[%clk 0:03:03.2]} 3... dxe4 {[%clk
0:03:02.5]} 4. Nxe4 {[%clk 0:03:05.1]} 4... Bf5 {[%clk 0:03:03.8]} 5. Ng3 {[%clk
0:03:06.4]} 5... Bg6 {[%clk 0:03:04.3]} 6. h4 {[%clk 0:03:08.3]} 6... h6 {[%clk
0:03:05]} 7. Nh3 {[%clk 0:03:09.7]} 7... Nf6 {[%clk 0:02:54.6]} 8. Bc4 {[%clk
0:03:08.5]} 8... e6 {[%clk 0:02:52.7]} 9. Nf4 {[%clk 0:03:09]} 9... Bh7 {[%clk
0:02:53.9]} 10. Qe2 {[%clk 0:03:09.4]} 10... Bd6 {[%clk 0:02:50.9]} 11. c3
{[%clk 0:03:00.8]} 11... O-O {[%clk 0:02:45.3]} 12. Be3 {[%clk 0:02:47.1]} 12...
Nbd7 {[%clk 0:02:38.6]} 13. Ngh5 {[%clk 0:02:38.8]} 13... Nxh5 {[%clk
0:02:35.7]} 14. Nxh5 {[%clk 0:02:39.6]} 14... Nf6 {[%clk 0:02:36.9]} 15. O-O
{[%clk 0:02:34]} 15... Nxh5 {[%clk 0:02:17.4]} 16. Qxh5 {[%clk 0:02:33.6]} 16...
Qf6 {[%clk 0:02:18.7]} 17. Rad1 {[%clk 0:02:21.9]} 17... a5 {[%clk 0:02:08]} 18.
Bd3 {[%clk 0:02:21.6]} 18... Bxd3 {[%clk 0:02:04.5]} 19. Rxd3 {[%clk 0:02:21.8]}
19... Be7 {[%clk 0:01:51]} 20. g3 {[%clk 0:02:19.1]} 20... Bd6 {[%clk
0:01:50.4]} 21. Bd2 {[%clk 0:02:19.2]} 21... e5 {[%clk 0:01:43.6]} 22. Rf3
{[%clk 0:02:10.9]} 22... Qe6 {[%clk 0:01:44.8]} 23. Re1 {[%clk 0:02:09.7]} 23...
e4 {[%clk 0:01:36.3]} 24. Rfe3 {[%clk 0:01:57.3]} 24... f5 {[%clk 0:01:36.4]}
25. a3 {[%clk 0:01:45.3]} 25... Qb3 {[%clk 0:01:28.9]} 26. Bc1 {[%clk 0:01:40]}
26... b5 {[%clk 0:01:25.4]} 27. R3e2 {[%clk 0:01:38.9]} 27... b4 {[%clk
0:01:23.3]} 28. axb4 {[%clk 0:01:35.9]} 28... axb4 {[%clk 0:01:23.3]} 29. Bxh6
{[%clk 0:01:36.3]} 29... Qe6 {[%clk 0:00:55]} 30. Bf4 {[%clk 0:01:21.1]} 30...
Bxf4 {[%clk 0:00:53.3]} 31. gxf4 {[%clk 0:01:22.1]} 31... Rf6 {[%clk 0:00:50]}
32. Re3 {[%clk 0:01:19.6]} 32... Ra2 {[%clk 0:00:41.5]} 33. Rg3 {[%clk
0:01:15.2]} 33... Rxb2 {[%clk 0:00:38.2]} 34. cxb4 {[%clk 0:01:15.9]} 34... Rxb4
{[%clk 0:00:32.7]} 35. Ra1 {[%clk 0:01:16.2]} 35... Rxd4 {[%clk 0:00:25]} 36.
Ra8+ {[%clk 0:01:12.7]} 36... Rf8 {[%clk 0:00:25]} 37. Rxf8+ {[%clk 0:01:13]}
37... Kxf8 {[%clk 0:00:26.2]} 38. Qh8+ {[%clk 0:01:13.3]} 38... Qg8 {[%clk
0:00:27.8]} 39. Qh5 {[%clk 0:01:06]} 39... Rd5 {[%clk 0:00:22.4]} 40. Qg6 {[%clk
0:01:02.2]} 40... Qf7 {[%clk 0:00:21.6]} 41. Qxc6 {[%clk 0:01:01.1]} 41... Kg8
{[%clk 0:00:16.3]} 42. h5 {[%clk 0:00:51]} 42... Rd1+ {[%clk 0:00:14.7]} 43. Kg2
{[%clk 0:00:51.8]} 43... Qxh5 {[%clk 0:00:14.2]} 44. Qc8+ {[%clk 0:00:51.7]}
44... Kh7 {[%clk 0:00:15.3]} 45. Rh3 {[%clk 0:00:49.3]} 45... Rg1+ {[%clk
0:00:16.4]} 46. Kxg1 {[%clk 0:00:50.1]} 46... Qxh3 {[%clk 0:00:17.8]} 47. Qe6
{[%clk 0:00:49.6]} 47... Qg4+ {[%clk 0:00:16.6]} 48. Kf1 {[%clk 0:00:50.3]}
48... Qxf4 {[%clk 0:00:18]} 49. Qe8 {[%clk 0:00:48.7]} 49... Qg4 {[%clk
0:00:16.5]} 50. Ke1 {[%clk 0:00:45.8]} 50... Qg1+ {[%clk 0:00:16.3]} 51. Ke2
{[%clk 0:00:46.4]} 51... Qg4+ {[%clk 0:00:17.8]} 52. Ke1 {[%clk 0:00:47.1]}
52... Qf3 {[%clk 0:00:17.5]} 53. Qe7 {[%clk 0:00:45.4]} 53... Qh1+ {[%clk
0:00:13.7]} 54. Ke2 {[%clk 0:00:44.5]} 54... Qh5+ {[%clk 0:00:14.6]} 55. Ke1
{[%clk 0:00:43.7]} 55... Qg4 {[%clk 0:00:14.8]} 56. Qe8 {[%clk 0:00:43.3]} 56...
Qf3 {[%clk 0:00:08.8]} 57. Qe7 {[%clk 0:00:42.6]} 57... Qh3 {[%clk 0:00:08.8]}
58. Qg5 {[%clk 0:00:38.4]} 58... Qh1+ {[%clk 0:00:06.8]} 59. Ke2 {[%clk
0:00:38.4]} 59... Qf3+ {[%clk 0:00:08.3]} 60. Ke1 {[%clk 0:00:39.4]} 60... f4
{[%clk 0:00:06.8]} 61. Qh4+ {[%clk 0:00:38.8]} 61... Kg6 {[%clk 0:00:08.2]} 62.
Qe7 {[%clk 0:00:37.9]} 62... e3 {[%clk 0:00:08.3]} 63. Qe6+ {[%clk 0:00:37.6]}
63... Kh5 {[%clk 0:00:07.3]} 64. Qf7+ {[%clk 0:00:36.3]} 64... Kh6 {[%clk
0:00:05]} 65. Qe6+ {[%clk 0:00:35.9]} 65... g6 {[%clk 0:00:06.4]} 66. fxe3
{[%clk 0:00:33.7]} 66... fxe3 {[%clk 0:00:07.9]} 67. Qxg6+ {[%clk 0:00:29.1]}
67... Kxg6 {[%clk 0:00:07.1]} 1/2-1/2